[Event "Titled Tuesday Blitz July 4 Early 2023"]
[White "Soham Kamotra"]
[Black "Goswami, Vedant"]
[WhiteFideId "46647490"]
[BlackFideId "5003725"]
[WhiteElo "2655"]
[BlackElo "2366"]
[Result "1-0"]
[Round "1"]
[TimeControl "180+2"]
[Date "2023.07.04"]
[WhiteClock "0:00:11"]
[BlackClock "0:00:05"]
[Board "127"]

1. c4 {[%clk 0:02:58]}  e6 {[%clk 0:02:57]} 2. g3 {[%clk 0:02:55]}  Nf6 {[%clk 0:02:55]} 3. Bg2 {[%clk 0:02:55]}  d5 {[%clk 0:02:53]} 4. Nf3 {[%clk 0:02:54]}  Be7 {[%clk 0:02:52]} 5. O-O {[%clk 0:02:55]}  O-O {[%clk 0:02:51]} 6. b3 {[%clk 0:02:55]}  c5 {[%clk 0:02:50]} 7. e3 {[%clk 0:02:51]}  d4 {[%clk 0:02:46]} 8. exd4 {[%clk 0:02:46]}  cxd4 {[%clk 0:02:44]} 9. Re1 {[%clk 0:02:46]}  Nc6 {[%clk 0:02:43]} 10. d3 {[%clk 0:02:39]}  Nd7 {[%clk 0:02:29]} 11. Ba3 {[%clk 0:02:34]}  e5 {[%clk 0:02:22]} 12. Qd2 {[%clk 0:02:15]}  a5 {[%clk 0:02:11]} 13. Qb2 {[%clk 0:02:02]}  Bb4 {[%clk 0:02:01]} 14. Bxb4 {[%clk 0:01:55]}  Nxb4 {[%clk 0:01:57]} 15. Qd2 {[%clk 0:01:38]}  f6 {[%clk 0:01:54]} 16. Qc1 {[%clk 0:01:34]}  Nxd3 {[%clk 0:01:49]} 17. Qd2 {[%clk 0:01:27]}  Nxe1 {[%clk 0:01:48]} 18. Nxe1 {[%clk 0:01:28]}  Nc5 {[%clk 0:01:45]} 19. Nc2 {[%clk 0:01:23]}  Bf5 {[%clk 0:01:41]} 20. Nba3 {[%clk 0:01:23]}  Qd7 {[%clk 0:01:35]} 21. Nb5 {[%clk 0:01:20]}  Bxc2 {[%clk 0:01:16]} 22. Qxc2 {[%clk 0:01:17]}  d3 {[%clk 0:01:14]} 23. Qc3 {[%clk 0:01:10]}  e4 {[%clk 0:01:10]} 24. Rd1 {[%clk 0:00:52]}  Rfd8 {[%clk 0:01:06]} 25. a3 {[%clk 0:00:49]}  f5 {[%clk 0:01:01]} 26. b4 {[%clk 0:00:45]}  axb4 {[%clk 0:00:59]} 27. axb4 {[%clk 0:00:46]}  Na4 {[%clk 0:00:59]} 28. Qb3 {[%clk 0:00:46]}  d2 {[%clk 0:00:54]} 29. Bf1 {[%clk 0:00:38]}  Kh8 {[%clk 0:00:48]} 30. c5 {[%clk 0:00:38]}  Qe7 {[%clk 0:00:35]} 31. Nd6 {[%clk 0:00:13]}  Rxd6 {[%clk 0:00:33]} 32. cxd6 {[%clk 0:00:14]}  Qxd6 {[%clk 0:00:33]} 33. Qc2 {[%clk 0:00:15]}  Qxb4 {[%clk 0:00:30]} 34. Rxd2 {[%clk 0:00:15]}  h6 {[%clk 0:00:27]} 35. Rd7 {[%clk 0:00:15]}  Qc3 {[%clk 0:00:23]} 36. Qd1 {[%clk 0:00:14]}  Nc5 {[%clk 0:00:22]} 37. Rc7 {[%clk 0:00:13]}  Ra1 {[%clk 0:00:18]} 38. Qd8+ {[%clk 0:00:13]}  Kh7 {[%clk 0:00:17]} 39. Qf8 {[%clk 0:00:12]}  b5 {[%clk 0:00:09]} 40. Qxf5+ {[%clk 0:00:12]}  Kg8 {[%clk 0:00:05]} 41. Rc8# {[%clk 0:00:11]} 1-0


[Site "https://www.chess.com"]

[Event "Titled Tuesday Blitz July 4 Early 2023"]
[White "Koridze, Lile"]
[Black "Le Ruyet, Leopold"]
[WhiteFideId "13612514"]
[BlackFideId "645923"]
[WhiteElo "2365"]
[BlackElo "2653"]
[Result "1-0"]
[Round "1"]
[TimeControl "180+2"]
[Date "2023.07.04"]
[WhiteClock "0:00:22"]
[BlackClock "0:01:25"]
[Board "128"]

1. d4 {[%clk 0:03:00]}  d5 {[%clk 0:02:59]} 2. c3 {[%clk 0:03:01]}  Nf6 {[%clk 0:02:59]} 3. Nf3 {[%clk 0:02:59]}  e6 {[%clk 0:02:58]} 4. e3 {[%clk 0:02:59]}  c5 {[%clk 0:02:58]} 5. Bd3 {[%clk 0:02:59]}  Nc6 {[%clk 0:02:59]} 6. O-O {[%clk 0:02:56]}  Bd6 {[%clk 0:02:58]} 7. Nbd2 {[%clk 0:02:56]}  O-O {[%clk 0:02:57]} 8. Qe2 {[%clk 0:02:56]}  b6 {[%clk 0:02:55]} 9. e4 {[%clk 0:02:56]}  Be7 {[%clk 0:02:53]} 10. e5 {[%clk 0:02:51]}  Nd7 {[%clk 0:02:54]} 11. b3 {[%clk 0:02:44]}  f6 {[%clk 0:02:50]} 12. exf6 {[%clk 0:02:17]}  Nxf6 {[%clk 0:02:51]} 13. Bb2 {[%clk 0:02:04]}  Re8 {[%clk 0:02:47]} 14. Bb5 {[%clk 0:01:50]}  Bd7 {[%clk 0:02:43]} 15. Bxc6 {[%clk 0:01:49]}  Bxc6 {[%clk 0:02:43]} 16. Qxe6+ {[%clk 0:01:49]}  Kh8 {[%clk 0:02:42]} 17. Qxc6 {[%clk 0:01:49]}  Bd6 {[%clk 0:02:32]} 18. dxc5 {[%clk 0:01:32]}  Bxc5 {[%clk 0:02:29]} 19. b4 {[%clk 0:01:23]}  Rc8 {[%clk 0:02:26]} 20. Qa4 {[%clk 0:01:22]}  Bd6 {[%clk 0:02:26]} 21. h3 {[%clk 0:01:20]}  Ne4 {[%clk 0:02:25]} 22. Nxe4 {[%clk 0:01:19]}  dxe4 {[%clk 0:02:25]} 23. Nd4 {[%clk 0:01:17]}  Bb8 {[%clk 0:02:02]} 24. Nc6 {[%clk 0:00:49]}  Qd7 {[%clk 0:02:02]} 25. b5 {[%clk 0:00:48]}  Bc7 {[%clk 0:01:55]} 26. Qd4 {[%clk 0:00:46]}  Qf5 {[%clk 0:01:51]} 27. c4 {[%clk 0:00:46]}  Qg5 {[%clk 0:01:50]} 28. Qe3 {[%clk 0:00:33]}  Bf4 {[%clk 0:01:44]} 29. Qe2 {[%clk 0:00:33]}  Re6 {[%clk 0:01:40]} 30. Rad1 {[%clk 0:00:27]}  Rce8 {[%clk 0:01:38]} 31. Qg4 {[%clk 0:00:25]}  Qh6 {[%clk 0:01:32]} 32. Rd8 {[%clk 0:00:22]}  Rxd8 {[%clk 0:01:27]} 33. Nxd8 {[%clk 0:00:22]}  Re8 {[%clk 0:01:25]} 34. Nf7+ {[%clk 0:00:22]} 1-0


[Site "https://www.chess.com"]

[Event "Titled Tuesday Blitz July 4 Early 2023"]
[White "Souleidis, Georgios"]
[Black "Labussiere, Yago"]
[WhiteFideId "4206827"]
[BlackFideId "2186969"]
[WhiteElo "2652"]
[BlackElo "2365"]
[Result "1-0"]
[Round "1"]
[TimeControl "180+2"]
[Date "2023.07.04"]
[WhiteClock "0:00:06"]
[BlackClock "0:00:00"]
[Board "129"]

1. e4 {[%clk 0:03:00]}  c5 {[%clk 0:02:59]} 2. Nf3 {[%clk 0:02:58]}  Nc6 {[%clk 0:02:59]} 3. Bc4 {[%clk 0:02:58]}  e6 {[%clk 0:02:59]} 4. O-O {[%clk 0:02:58]}  Nf6 {[%clk 0:02:57]} 5. Re1 {[%clk 0:02:50]}  d6 {[%clk 0:02:53]} 6. Bf1 {[%clk 0:02:49]}  Be7 {[%clk 0:02:52]} 7. c3 {[%clk 0:02:48]}  O-O {[%clk 0:02:50]} 8. d4 {[%clk 0:02:48]}  cxd4 {[%clk 0:02:50]} 9. cxd4 {[%clk 0:02:49]}  e5 {[%clk 0:02:50]} 10. d5 {[%clk 0:02:48]}  Nb8 {[%clk 0:02:50]} 11. Nc3 {[%clk 0:02:47]}  Nbd7 {[%clk 0:02:43]} 12. Be3 {[%clk 0:02:47]}  a6 {[%clk 0:02:32]} 13. Nd2 {[%clk 0:02:44]}  b5 {[%clk 0:02:32]} 14. f3 {[%clk 0:02:44]}  Nc5 {[%clk 0:02:29]} 15. b4 {[%clk 0:02:38]}  Ncd7 {[%clk 0:02:25]} 16. Nb3 {[%clk 0:02:38]}  Ne8 {[%clk 0:02:19]} 17. Na5 {[%clk 0:02:37]}  Bg5 {[%clk 0:02:19]} 18. Bf2 {[%clk 0:02:35]}  Qf6 {[%clk 0:02:13]} 19. a4 {[%clk 0:02:29]}  bxa4 {[%clk 0:02:08]} 20. Nxa4 {[%clk 0:02:28]}  Qh6 {[%clk 0:01:48]} 21. Nc6 {[%clk 0:02:08]}  f5 {[%clk 0:01:41]} 22. exf5 {[%clk 0:02:04]}  Rxf5 {[%clk 0:01:28]} 23. Bd3 {[%clk 0:01:53]}  Rf7 {[%clk 0:01:22]} 24. Nc3 {[%clk 0:01:48]}  Ndf6 {[%clk 0:01:14]} 25. Ne4 {[%clk 0:01:42]}  Nxe4 {[%clk 0:01:13]} 26. Bxe4 {[%clk 0:01:41]}  Nf6 {[%clk 0:01:12]} 27. b5 {[%clk 0:01:25]}  Nxe4 {[%clk 0:01:02]} 28. fxe4 {[%clk 0:01:25]}  Rxf2 {[%clk 0:00:46]} 29. Kxf2 {[%clk 0:01:25]}  Qxh2 {[%clk 0:00:47]} 30. Rh1 {[%clk 0:00:33]}  Bh4+ {[%clk 0:00:29]} 31. Ke3 {[%clk 0:00:33]}  Bg5+ {[%clk 0:00:16]} 32. Kd3 {[%clk 0:00:27]}  Qxg2 {[%clk 0:00:14]} 33. Qe2 {[%clk 0:00:14]}  Qg3+ {[%clk 0:00:09]} 34. Kc2 {[%clk 0:00:14]}  Bg4 {[%clk 0:00:08]} 35. Rhg1 {[%clk 0:00:06]}  Qxg1 {[%clk 0:00:06]} 36. Rxg1 {[%clk 0:00:06]}  Bxe2 {[%clk 0:00:00]} 37. b6 {[%clk 0:00:06]} 1-0


[Site "https://www.chess.com"]

[Event "Titled Tuesday Blitz July 4 Early 2023"]
[White "Silva, Pedro Gil Ferreira Da"]
[Black "Guerra Tulcan, Lenin"]
[WhiteFideId "1946102"]
[BlackFideId "3601382"]
[WhiteElo "2362"]
[BlackElo "2648"]
[Result "0-1"]
[Round "1"]
[TimeControl "180+2"]
[Date "2023.07.04"]
[WhiteClock "0:01:08"]
[BlackClock "0:01:14"]
[Board "132"]

1. e4 {[%clk 0:02:54]}  c5 {[%clk 0:02:57]} 2. Nf3 {[%clk 0:02:54]}  d6 {[%clk 0:02:57]} 3. d4 {[%clk 0:02:52]}  cxd4 {[%clk 0:02:58]} 4. Qd3 {[%clk 0:02:53]}  Nc6 {[%clk 0:02:55]} 5. Nxd4 {[%clk 0:02:52]}  Nf6 {[%clk 0:02:56]} 6. Nc3 {[%clk 0:02:52]}  a6 {[%clk 0:02:55]} 7. Bg5 {[%clk 0:02:51]}  e6 {[%clk 0:02:54]} 8. O-O-O {[%clk 0:02:51]}  Be7 {[%clk 0:02:53]} 9. Nxc6 {[%clk 0:02:51]}  bxc6 {[%clk 0:02:54]} 10. f4 {[%clk 0:02:46]}  Qc7 {[%clk 0:02:52]} 11. Kb1 {[%clk 0:02:41]}  e5 {[%clk 0:02:50]} 12. f5 {[%clk 0:02:37]}  Rb8 {[%clk 0:02:48]} 13. Be2 {[%clk 0:02:36]}  h6 {[%clk 0:02:45]} 14. Be3 {[%clk 0:02:32]}  O-O {[%clk 0:02:33]} 15. Bf3 {[%clk 0:02:31]}  Rd8 {[%clk 0:02:33]} 16. Qc4 {[%clk 0:02:29]}  Qa5 {[%clk 0:02:25]} 17. b3 {[%clk 0:02:24]}  Rb4 {[%clk 0:02:15]} 18. Qd3 {[%clk 0:02:24]}  Bb7 {[%clk 0:02:06]} 19. Bd2 {[%clk 0:01:37]}  d5 {[%clk 0:02:05]} 20. Qe2 {[%clk 0:01:37]}  d4 {[%clk 0:02:03]} 21. Na4 {[%clk 0:01:36]}  Qxa4 {[%clk 0:02:02]} 22. Bxb4 {[%clk 0:01:33]}  Qxb4 {[%clk 0:02:03]} 23. g4 {[%clk 0:01:32]}  c5 {[%clk 0:01:55]} 24. h4 {[%clk 0:01:31]}  c4 {[%clk 0:01:55]} 25. g5 {[%clk 0:01:31]}  d3 {[%clk 0:01:49]} 26. cxd3 {[%clk 0:01:30]}  cxb3 {[%clk 0:01:44]} 27. gxf6 {[%clk 0:01:30]}  bxa2+ {[%clk 0:01:43]} 28. Ka1 {[%clk 0:01:31]}  Bc5 {[%clk 0:01:42]} 29. d4 {[%clk 0:01:18]}  Bxd4+ {[%clk 0:01:17]} 30. Rxd4 {[%clk 0:01:16]}  Qxd4+ {[%clk 0:01:17]} 31. Qb2 {[%clk 0:01:16]}  Qxb2+ {[%clk 0:01:15]} 32. Kxb2 {[%clk 0:01:17]}  Rd2+ {[%clk 0:01:15]} 33. Ka1 {[%clk 0:01:08]}  gxf6 {[%clk 0:01:14]} 0-1


[Site "https://www.chess.com"]

[Event "Titled Tuesday Blitz July 4 Early 2023"]
[White "Martinez Ramirez, Lennis"]
[Black "Petrova, Irina"]
[WhiteFideId "3509079"]
[BlackFideId "14124122"]
[WhiteElo "2647"]
[BlackElo "2361"]
[Result "1-0"]
[Round "1"]
[TimeControl "180+2"]
[Date "2023.07.04"]
[WhiteClock "0:02:03"]
[BlackClock "0:01:41"]
[Board "133"]

1. e4 {[%clk 0:02:56]}  e5 {[%clk 0:02:59]} 2. Nf3 {[%clk 0:02:55]}  Nc6 {[%clk 0:02:59]} 3. Bb5 {[%clk 0:02:55]}  a6 {[%clk 0:02:59]} 4. Ba4 {[%clk 0:02:55]}  Nf6 {[%clk 0:02:58]} 5. d3 {[%clk 0:02:55]}  b5 {[%clk 0:02:50]} 6. Bb3 {[%clk 0:02:54]}  Bc5 {[%clk 0:02:50]} 7. a4 {[%clk 0:02:51]}  Rb8 {[%clk 0:02:49]} 8. axb5 {[%clk 0:02:50]}  axb5 {[%clk 0:02:50]} 9. O-O {[%clk 0:02:49]}  d6 {[%clk 0:02:48]} 10. h3 {[%clk 0:02:30]}  O-O {[%clk 0:02:42]} 11. Bg5 {[%clk 0:02:29]}  h6 {[%clk 0:02:40]} 12. Bh4 {[%clk 0:02:29]}  g5 {[%clk 0:02:39]} 13. Nxg5 {[%clk 0:02:15]}  hxg5 {[%clk 0:02:40]} 14. Bxg5 {[%clk 0:02:15]}  Kg7 {[%clk 0:02:40]} 15. Nc3 {[%clk 0:02:15]}  Be6 {[%clk 0:02:32]} 16. Kh1 {[%clk 0:02:04]}  Nd4 {[%clk 0:02:24]} 17. f4 {[%clk 0:02:04]}  Nxb3 {[%clk 0:01:52]} 18. fxe5 {[%clk 0:02:04]}  Bd4 {[%clk 0:01:41]} 19. Bxf6+ {[%clk 0:02:03]} 1-0


[Site "https://www.chess.com"]

[Event "Titled Tuesday Blitz July 4 Early 2023"]
[White "Fernandez Siles, Luis"]
[Black "Zochowski, Kacper"]
[WhiteFideId "2209420"]
[BlackFideId "1125494"]
[WhiteElo "2359"]
[BlackElo "2646"]
[Result "1-0"]
[Round "1"]
[TimeControl "180+2"]
[Date "2023.07.04"]
[WhiteClock "0:00:41"]
[BlackClock "0:00:00"]
[Board "134"]

1. e4 {[%clk 0:02:59]}  d6 {[%clk 0:02:59]} 2. Nc3 {[%clk 0:02:59]}  Nf6 {[%clk 0:03:00]} 3. f4 {[%clk 0:02:58]}  e5 {[%clk 0:03:01]} 4. Nf3 {[%clk 0:02:58]}  exf4 {[%clk 0:03:00]} 5. Bc4 {[%clk 0:02:56]}  Be6 {[%clk 0:02:55]} 6. Bxe6 {[%clk 0:02:46]}  fxe6 {[%clk 0:02:55]} 7. d4 {[%clk 0:02:46]}  Nh5 {[%clk 0:02:48]} 8. O-O {[%clk 0:02:36]}  g6 {[%clk 0:02:38]} 9. Qe2 {[%clk 0:02:13]}  Bg7 {[%clk 0:02:36]} 10. Qb5+ {[%clk 0:02:11]}  Qd7 {[%clk 0:02:34]} 11. Qxb7 {[%clk 0:02:11]}  Qc6 {[%clk 0:02:34]} 12. Qb3 {[%clk 0:02:06]}  Kd7 {[%clk 0:02:19]} 13. Kh1 {[%clk 0:01:42]}  h6 {[%clk 0:02:07]} 14. d5 {[%clk 0:01:42]}  exd5 {[%clk 0:02:04]} 15. Nxd5 {[%clk 0:01:39]}  g5 {[%clk 0:01:56]} 16. Nb4 {[%clk 0:01:26]}  Qb5 {[%clk 0:01:46]} 17. Qf7+ {[%clk 0:01:25]}  Kc8 {[%clk 0:01:46]} 18. Bd2 {[%clk 0:01:14]}  Qe8 {[%clk 0:01:42]} 19. Qd5 {[%clk 0:01:11]}  c6 {[%clk 0:00:59]} 20. Qxd6 {[%clk 0:01:11]}  a5 {[%clk 0:00:56]} 21. Nd3 {[%clk 0:01:09]}  Qd7 {[%clk 0:00:57]} 22. Qg6 {[%clk 0:01:09]}  Qe8 {[%clk 0:00:56]} 23. Qd6 {[%clk 0:01:04]}  Qd7 {[%clk 0:00:56]} 24. Qc5 {[%clk 0:01:03]}  Bf8 {[%clk 0:00:56]} 25. Qc3 {[%clk 0:00:56]}  Bg7 {[%clk 0:00:56]} 26. e5 {[%clk 0:00:55]}  Na6 {[%clk 0:00:56]} 27. Qxa5 {[%clk 0:00:52]}  Nc7 {[%clk 0:00:54]} 28. Qb4 {[%clk 0:00:49]}  Nd5 {[%clk 0:00:53]} 29. Qc5 {[%clk 0:00:49]}  Bf8 {[%clk 0:00:30]} 30. Qc4 {[%clk 0:00:49]}  Nb6 {[%clk 0:00:29]} 31. Qc3 {[%clk 0:00:47]}  Nd5 {[%clk 0:00:29]} 32. Qc4 {[%clk 0:00:47]}  Nb6 {[%clk 0:00:29]} 33. Qe4 {[%clk 0:00:48]}  Qd5 {[%clk 0:00:29]} 34. Qg6 {[%clk 0:00:47]}  Ng3+ {[%clk 0:00:21]} 35. hxg3 {[%clk 0:00:46]}  fxg3 {[%clk 0:00:22]} 36. Qf5+ {[%clk 0:00:43]}  Kb7 {[%clk 0:00:21]} 37. Nb4 {[%clk 0:00:43]}  Qc4 {[%clk 0:00:00]} 38. b3 {[%clk 0:00:41]} 1-0


[Site "https://www.chess.com"]

[Event "Titled Tuesday Blitz July 4 Early 2023"]
[White "Tan, Jun Ying"]
[Black "Sovetbekova, Nurai"]
[WhiteFideId "5710413"]
[BlackFideId "13801910"]
[WhiteElo "2646"]
[BlackElo "2359"]
[Result "1-0"]
[Round "1"]
[TimeControl "180+2"]
[Date "2023.07.04"]
[WhiteClock "0:00:33"]
[BlackClock "0:00:00"]
[Board "135"]

1. d4 {[%clk 0:03:00]}  Nf6 {[%clk 0:02:59]} 2. c4 {[%clk 0:03:01]}  e6 {[%clk 0:02:58]} 3. Nc3 {[%clk 0:03:01]}  Bb4 {[%clk 0:02:58]} 4. e3 {[%clk 0:03:01]}  O-O {[%clk 0:02:57]} 5. Ne2 {[%clk 0:03:00]}  d5 {[%clk 0:02:45]} 6. a3 {[%clk 0:02:59]}  Be7 {[%clk 0:02:44]} 7. cxd5 {[%clk 0:02:59]}  Nxd5 {[%clk 0:02:43]} 8. Bd2 {[%clk 0:02:58]}  b6 {[%clk 0:02:40]} 9. Nxd5 {[%clk 0:02:54]}  exd5 {[%clk 0:02:39]} 10. g3 {[%clk 0:02:53]}  Bg4 {[%clk 0:02:25]} 11. Bg2 {[%clk 0:02:53]}  Qd7 {[%clk 0:02:24]} 12. O-O {[%clk 0:02:37]}  c5 {[%clk 0:01:54]} 13. dxc5 {[%clk 0:02:31]}  bxc5 {[%clk 0:01:55]} 14. Be1 {[%clk 0:02:07]}  Rd8 {[%clk 0:01:47]} 15. Qc2 {[%clk 0:01:59]}  Nc6 {[%clk 0:01:41]} 16. Nf4 {[%clk 0:01:45]}  Bf5 {[%clk 0:01:28]} 17. Qa4 {[%clk 0:01:37]}  Be4 {[%clk 0:00:48]} 18. Bxe4 {[%clk 0:01:32]}  dxe4 {[%clk 0:00:49]} 19. Qxe4 {[%clk 0:01:30]}  Bf6 {[%clk 0:00:50]} 20. Bc3 {[%clk 0:01:17]}  Bxc3 {[%clk 0:00:49]} 21. bxc3 {[%clk 0:01:18]}  Na5 {[%clk 0:00:32]} 22. Rfd1 {[%clk 0:01:02]}  Qg4 {[%clk 0:00:24]} 23. Rxd8+ {[%clk 0:00:53]}  Rxd8 {[%clk 0:00:24]} 24. Qa4 {[%clk 0:00:50]}  Nb7 {[%clk 0:00:11]} 25. Qxa7 {[%clk 0:00:45]}  Qf3 {[%clk 0:00:11]} 26. c4 {[%clk 0:00:34]}  g5 {[%clk 0:00:10]} 27. Nd5 {[%clk 0:00:32]}  Nd6 {[%clk 0:00:00]} 28. Qe7 {[%clk 0:00:33]} 1-0


[Site "https://www.chess.com"]

[Event "Titled Tuesday Blitz July 4 Early 2023"]
[White "TomLiu777"]
[Black "Iskusnyh, Sergei"]
[BlackFideId "4120027"]
[WhiteElo "2356"]
[BlackElo "2643"]
[Result "0-1"]
[Round "1"]
[TimeControl "180+2"]
[Date "2023.07.04"]
[WhiteClock "0:00:00"]
[BlackClock "0:00:23"]
[Board "136"]

1. c4 {[%clk 0:02:57]}  e5 {[%clk 0:02:57]} 2. Nc3 {[%clk 0:02:54]}  Bb4 {[%clk 0:02:55]} 3. Nd5 {[%clk 0:02:54]}  Be7 {[%clk 0:02:52]} 4. Nf3 {[%clk 0:02:53]}  d6 {[%clk 0:02:49]} 5. d4 {[%clk 0:02:52]}  Nf6 {[%clk 0:02:47]} 6. e3 {[%clk 0:02:45]}  O-O {[%clk 0:02:24]} 7. Be2 {[%clk 0:02:43]}  Nxd5 {[%clk 0:02:14]} 8. cxd5 {[%clk 0:02:42]}  c6 {[%clk 0:02:13]} 9. dxc6 {[%clk 0:02:07]}  Nxc6 {[%clk 0:02:12]} 10. d5 {[%clk 0:02:01]}  Nb8 {[%clk 0:02:08]} 11. e4 {[%clk 0:01:50]}  f5 {[%clk 0:02:07]} 12. exf5 {[%clk 0:01:49]}  Bxf5 {[%clk 0:02:06]} 13. O-O {[%clk 0:01:50]}  Nd7 {[%clk 0:02:05]} 14. Be3 {[%clk 0:01:48]}  Kh8 {[%clk 0:01:56]} 15. Rc1 {[%clk 0:01:47]}  Nb6 {[%clk 0:01:38]} 16. Qb3 {[%clk 0:01:44]}  Be4 {[%clk 0:01:33]} 17. Rfd1 {[%clk 0:01:38]}  Rc8 {[%clk 0:01:28]} 18. Rxc8 {[%clk 0:01:36]}  Qxc8 {[%clk 0:01:27]} 19. Rc1 {[%clk 0:01:27]}  Qf5 {[%clk 0:01:16]} 20. Bxb6 {[%clk 0:01:25]}  axb6 {[%clk 0:01:16]} 21. Bd3 {[%clk 0:01:20]}  Bxd3 {[%clk 0:01:10]} 22. Qxb6 {[%clk 0:01:04]}  e4 {[%clk 0:01:05]} 23. Ne1 {[%clk 0:00:59]}  Bd8 {[%clk 0:00:59]} 24. Qd4 {[%clk 0:00:57]}  Bg5 {[%clk 0:00:55]} 25. Rc7 {[%clk 0:00:42]}  Bf6 {[%clk 0:00:46]} 26. Qe3 {[%clk 0:00:38]}  Qxd5 {[%clk 0:00:43]} 27. Qh3 {[%clk 0:00:23]}  Bd4 {[%clk 0:00:38]} 28. Rc8 {[%clk 0:00:15]}  Bxf2+ {[%clk 0:00:35]} 29. Kh1 {[%clk 0:00:15]}  Qg8 {[%clk 0:00:34]} 30. Rxf8 {[%clk 0:00:12]}  Qxf8 {[%clk 0:00:35]} 31. Nxd3 {[%clk 0:00:12]}  exd3 {[%clk 0:00:34]} 32. Qxd3 {[%clk 0:00:12]}  Bc5 {[%clk 0:00:33]} 33. h3 {[%clk 0:00:11]}  h6 {[%clk 0:00:32]} 34. b3 {[%clk 0:00:10]}  Qf2 {[%clk 0:00:30]} 35. Kh2 {[%clk 0:00:09]}  Bd4 {[%clk 0:00:29]} 36. Qd1 {[%clk 0:00:06]}  Be5+ {[%clk 0:00:28]} 37. Kh1 {[%clk 0:00:06]}  Qg3 {[%clk 0:00:28]} 38. Kg1 {[%clk 0:00:06]}  Qh2+ {[%clk 0:00:25]} 39. Kf2 {[%clk 0:00:07]}  Qf4+ {[%clk 0:00:24]} 40. Kg1 {[%clk 0:00:07]}  Qd4+ {[%clk 0:00:24]} 41. Qxd4 {[%clk 0:00:02]}  Bxd4+ {[%clk 0:00:25]} 42. Kf1 {[%clk 0:00:02]}  Kg8 {[%clk 0:00:26]} 43. a4 {[%clk 0:00:02]}  Bc3 {[%clk 0:00:25]} 44. a5 {[%clk 0:00:00]}  Bxa5 {[%clk 0:00:23]} 0-1


[Site "https://www.chess.com"]

[Event "Titled Tuesday Blitz July 4 Early 2023"]
[White "Glavina, Pablo"]
[Black "Niekras, Dawid"]
[WhiteFideId "100234"]
[BlackFideId "1160451"]
[WhiteElo "2349"]
[BlackElo "2642"]
[Result "1-0"]
[Round "1"]
[TimeControl "180+2"]
[Date "2023.07.04"]
[WhiteClock "0:00:31"]
[BlackClock "0:00:00"]
[Board "138"]

1. c4 {[%clk 0:03:00]}  e5 {[%clk 0:02:58]} 2. Nc3 {[%clk 0:03:00]}  Nf6 {[%clk 0:02:58]} 3. Nf3 {[%clk 0:03:01]}  Nc6 {[%clk 0:02:57]} 4. g3 {[%clk 0:03:01]}  d5 {[%clk 0:02:57]} 5. cxd5 {[%clk 0:03:00]}  Nxd5 {[%clk 0:02:58]} 6. Bg2 {[%clk 0:03:01]}  Nb6 {[%clk 0:02:58]} 7. O-O {[%clk 0:03:01]}  Be7 {[%clk 0:02:58]} 8. b3 {[%clk 0:03:00]}  O-O {[%clk 0:02:58]} 9. Bb2 {[%clk 0:03:01]}  Re8 {[%clk 0:02:58]} 10. Qc1 {[%clk 0:02:54]}  Bf8 {[%clk 0:02:51]} 11. Rd1 {[%clk 0:02:54]}  Nd4 {[%clk 0:02:28]} 12. Nxd4 {[%clk 0:02:48]}  exd4 {[%clk 0:02:28]} 13. Nb5 {[%clk 0:02:48]}  c5 {[%clk 0:02:15]} 14. e3 {[%clk 0:02:42]}  a6 {[%clk 0:02:06]} 15. Na3 {[%clk 0:02:42]}  Bg4 {[%clk 0:01:55]} 16. Re1 {[%clk 0:02:41]}  Qd7 {[%clk 0:01:40]} 17. Nc4 {[%clk 0:02:30]}  Nxc4 {[%clk 0:01:34]} 18. Qxc4 {[%clk 0:02:31]}  b5 {[%clk 0:01:24]} 19. Qd5 {[%clk 0:02:15]}  Qxd5 {[%clk 0:01:13]} 20. Bxd5 {[%clk 0:02:16]}  Rad8 {[%clk 0:01:14]} 21. Bc6 {[%clk 0:02:12]}  Re6 {[%clk 0:01:12]} 22. Bg2 {[%clk 0:02:11]}  dxe3 {[%clk 0:00:53]} 23. dxe3 {[%clk 0:02:12]}  Red6 {[%clk 0:00:48]} 24. Rec1 {[%clk 0:02:03]}  R6d7 {[%clk 0:00:34]} 25. Bf1 {[%clk 0:01:52]}  Be6 {[%clk 0:00:26]} 26. Ba3 {[%clk 0:01:44]}  Rc8 {[%clk 0:00:24]} 27. Rc2 {[%clk 0:01:39]}  f6 {[%clk 0:00:25]} 28. Rac1 {[%clk 0:01:38]}  Rdc7 {[%clk 0:00:25]} 29. Bb2 {[%clk 0:01:31]}  Kf7 {[%clk 0:00:26]} 30. e4 {[%clk 0:01:29]}  c4 {[%clk 0:00:18]} 31. f4 {[%clk 0:01:29]}  Bd6 {[%clk 0:00:17]} 32. f5 {[%clk 0:01:27]}  Bd7 {[%clk 0:00:13]} 33. bxc4 {[%clk 0:01:27]}  Bc5+ {[%clk 0:00:12]} 34. Kg2 {[%clk 0:01:27]}  b4 {[%clk 0:00:13]} 35. Be2 {[%clk 0:01:21]}  Ba4 {[%clk 0:00:13]} 36. Rd2 {[%clk 0:00:45]}  Be3 {[%clk 0:00:13]} 37. Rcd1 {[%clk 0:00:45]}  Bxd2 {[%clk 0:00:14]} 38. Rxd2 {[%clk 0:00:45]}  Rd7 {[%clk 0:00:14]} 39. Rd5 {[%clk 0:00:43]}  Bc6 {[%clk 0:00:12]} 40. Rxd7+ {[%clk 0:00:39]}  Bxd7 {[%clk 0:00:13]} 41. Kf3 {[%clk 0:00:40]}  a5 {[%clk 0:00:12]} 42. Ke3 {[%clk 0:00:40]}  Ke7 {[%clk 0:00:07]} 43. Bd4 {[%clk 0:00:39]}  Kd6 {[%clk 0:00:07]} 44. c5+ {[%clk 0:00:38]}  Kc6 {[%clk 0:00:06]} 45. Bc4 {[%clk 0:00:37]}  Rb8 {[%clk 0:00:05]} 46. Bd5+ {[%clk 0:00:36]}  Kc7 {[%clk 0:00:05]} 47. g4 {[%clk 0:00:32]}  Bc6 {[%clk 0:00:06]} 48. Be6 {[%clk 0:00:33]}  Rd8 {[%clk 0:00:05]} 49. g5 {[%clk 0:00:32]}  Rf8 {[%clk 0:00:04]} 50. h4 {[%clk 0:00:31]}  a4 {[%clk 0:00:04]} 51. e5 {[%clk 0:00:32]}  a3 {[%clk 0:00:01]} 52. exf6 {[%clk 0:00:30]}  gxf6 {[%clk 0:00:02]} 53. gxf6 {[%clk 0:00:30]}  Rb8 {[%clk 0:00:02]} 54. Be5+ {[%clk 0:00:30]}  Kb7 {[%clk 0:00:02]} 55. Bxb8 {[%clk 0:00:31]}  Kxb8 {[%clk 0:00:00]} 56. f7 {[%clk 0:00:31]} 1-0


[Site "https://www.chess.com"]